bitfinex-derivatives/quotes_SOLF0:USTF0_20241208
["timestamp","ask_amount","ask_price","bid_price","bid_amount"]
[1733657989917,1.3681,236.31,236.22,1.05835738]
[1733657990114,1.3681,236.31,236.24,2.1149]
[1733657990709,1.3681,236.31,236.16,46.15908696]
[1733657990710,2.1146,236.28,236.16,46.15908696]
[1733657990910,1.94,236.28,236.22,2.1152]
[1733657991614,2.1148,236.27,236.23,2.1151]
[1733657993326,2.1148,236.26,236.22,2.1152]
[1733657993721,1.94,236.3,236.16,48.09908696]
[1733657994024,4.0545,236.3,236.17,1.05846883]
[1733657994228,4.0545,236.3,236.18,1.05846883]
[1733657994434,1.94,236.3,236.19,1.05846883]
[1733657994633,1.94,236.3,236.16,48.09908696]
[1733657994828,1.94,236.3,236.17,1.05844366]
[1733657995027,1.94,236.3,236.16,48.09908696]
[1733657995028,1.94,236.3,236.18,1.05844366]
[1733657995327,2.1148,236.27,236.23,2.1151]
[1733657995534,2.1148,236.27,236.16,48.09908696]
[1733657995733,2.1148,236.27,236.17,1.0584989]
[1733657995935,2.1148,236.27,236.18,1.0584989]
[1733657996140,2.1148,236.27,236.16,48.09908696]
[1733657996335,2.1148,236.27,236.17,1.05850329]
[1733657996528,2.1148,236.27,236.18,1.05850329]
[1733657996730,2.1148,236.27,236.23,2.115]
[1733657997129,2.1146,236.28,236.16,1.94]
[1733657997335,2.1146,236.28,236.17,2.75192921]
[1733657997536,2.1146,236.28,236.18,1.05843431]
[1733657997735,2.1146,236.28,236.19,1.05843431]
[1733657997936,2.1146,236.28,236.16,48.09749695]
[1733657998132,2.1146,236.28,236.17,2.75195406]
[1733657998329,2.1146,236.28,236.18,2.75194353]
[1733657998536,2.1146,236.28,236.19,1.05844387]
[1733657998833,1.94,236.3,236.2,1.05844387]
[1733657999033,1.94,236.3,236.16,48.09749695]
[1733657999034,4.0545,236.3,236.16,48.09749695]
[1733657999237,4.0545,236.3,236.17,2.75178323]
[1733657999539,4.0545,236.3,236.18,4.86853956]
[1733657999731,4.0545,236.3,236.19,2.75178323]
[1733657999935,4.0545,236.3,236.2,2.75178323]
[1733658000135,4.0545,236.3,236.16,48.09749695]
[1733658000136,4.0545,236.3,236.26,2.1148]
[1733658000440,1.94,236.3,236.21,1.94]
[1733658000639,1.94,236.3,236.28,2.1146]
[1733658000941,2.7479,236.32,236.21,1.94]
[1733658001143,2.7479,236.32,236.22,2.7516029]
[1733658001445,2.7479,236.32,236.23,1.05830881]
[1733658001633,2.7479,236.32,236.24,1.05830881]
[1733658001834,2.7479,236.32,236.21,1.94]
[1733658002141,2.7479,236.32,236.22,2.75159176]
[1733658002333,1.94,236.33,236.23,1.05830452]
[1733658002538,1.94,236.33,236.24,1.05830452]
[1733658002739,1.94,236.33,236.21,1.94]
[1733658002940,1.94,236.33,236.22,2.75155939]
[1733658003246,2.6596,236.38,236.23,1.05829207]
[1733658003446,1.94,236.37,236.24,1.05829207]
[1733658003639,2.1142,236.33,236.21,1.94]
[1733658003839,2.1142,236.33,236.22,2.75164961]
[1733658004044,2.1142,236.33,236.23,1.05832677]
[1733658004247,2.1142,236.33,236.27,2.1147]
[1733658004444,2.1144,236.31,236.21,1.94]
[1733658004642,1.94,236.37,236.25,2.1149]
[1733658004945,2.1143,236.33,236.25,2.1149]
[1733658005445,1.94,236.37,236.27,2.1146]
[1733658005741,2.1141,236.34,236.21,1.94]
[1733658005950,2.1141,236.34,236.28,2.1146]
[1733658006542,2.1143,236.32,236.26,1.94]
[1733658007141,1.94,236.37,236.21,1.94]
[1733658007344,2.1145,236.3,236.22,2.99829723]
[1733658007543,2.1145,236.3,236.22,1.94]
[1733658007943,2.1145,236.3,236.24,2.1149]
[1733658008346,2.1144,236.31,236.24,2.1149]
[1733658008648,2.1144,236.31,236.25,2.1149]
[1733658009649,2.6596,236.38,236.3,2.1144]
[1733658009846,2.6596,236.38,236.29,1.94]
[1733658010751,2.1138,236.37,236.31,2.1143]
[1733658012347,1.94,236.36,236.19,1.94]
[1733658012644,3.3029,236.36,236.19,1.94]
[1733658013343,2.1145,236.3,236.24,2.115]
[1733658014249,2.1146,236.29,236.22,2.1151]
[1733658014449,2.1146,236.29,236.19,1.94]
[1733658014944,2.1147,236.27,236.2,2.1153]
[1733658015148,2.1147,236.27,236.2,1.94]
[1733658016849,2.1147,236.27,236.22,2.1152]
[1733658017242,2.1146,236.28,236.22,2.1152]
[1733658018249,2.115,236.24,236.11,1.98]
[1733658018554,1.4045,236.27,236.11,1.98]
[1733658018753,1.4045,236.27,236.12,1.3828]
[1733658019254,2.1149,236.26,236.19,2.1154]
[1733658019453,2.1149,236.26,236.16,1.98]
[1733658020453,2.1147,236.28,236.22,2.1151]
[1733658020646,1.3275,236.3,236.16,1.98]
[1733658021455,2.1145,236.29,236.23,2.115]
[1733658021853,1.3275,236.3,236.16,1.98]
[1733658022056,2.1146,236.28,236.22,2.1152]
[1733658022257,1.3275,236.3,236.16,1.98]
[1733658022957,2.1148,236.26,236.17,2.1156]
[1733658023155,1.3275,236.3,236.16,1.98]
[1733658024757,2.1149,236.25,236.16,1.98]
[1733658025158,2.1148,236.26,236.2,2.1153]
[1733658025956,1.3275,236.3,236.16,1.98]
[1733658025957,2.1146,236.28,236.22,2.1151]
[1733658027156,2.1145,236.29,236.23,2.115]
[1733658028352,2.1145,236.29,236.16,1.98]
[1733658028555,2.1145,236.29,236.24,2.115]
[1733658030159,2.1145,236.31,236.21,1.98]
[1733658030560,2.1145,236.31,236.26,2.1148]
[1733658032666,2.1145,236.3,236.21,1.98]
[1733658032868,2.1145,236.3,236.25,2.1149]
[1733658033766,1.3612,236.35,236.21,1.98]
[1733658033968,2.1145,236.31,236.25,2.1149]
[1733658034273,1.98,236.34,236.25,2.1149]
[1733658035769,2.1146,236.29,236.21,1.98]
[1733658035967,2.1146,236.29,236.24,2.115]
[1733658037171,2.1146,236.29,236.25,2.1149]
[1733658038668,1.98,236.34,236.21,1.98]
[1733658039164,2.1145,236.31,236.21,1.98]
[1733658039769,2.1145,236.31,236.26,2.1148]
[1733658040466,1.98,236.4,236.27,1.98]
[1733658040667,1.98,236.39,236.28,1.05818078]
[1733658040871,1.3351,236.42,236.29,1.05818078]
[1733658041064,2.1138,236.38,236.33,2.1142]
[1733658041670,2.1138,236.38,236.27,1.98]
[1733658041866,1.98,236.4,236.35,2.1139]
[1733658042875,2.1136,236.4,236.35,2.1139]
[1733658044575,2.1135,236.41,236.27,1.98]
[1733658044774,2.1135,236.41,236.28,5.9246698]
[1733658044974,2.1135,236.41,236.29,4.86669305]
[1733658045172,2.1135,236.41,236.28,1.05797675]
[1733658045173,2.1135,236.41,236.37,2.1138]
[1733658046573,3.4485,236.42,236.35,2.114]
[1733658046774,4.6737,236.45,236.32,1.98]
[1733658046974,4.6737,236.45,236.33,2.75044085]
[1733658047284,4.6737,236.45,236.34,2.75044085]
[1733658047475,2.1133,236.43,236.39,2.1136]
[1733658047671,2.6937,236.45,236.32,1.98]
[1733658047880,1.3408,236.45,236.33,4.86606211]
[1733658048179,1.3408,236.45,236.41,2.1135]
[1733658048375,1.3408,236.45,236.37,1.98]
[1733658048579,1.3408,236.45,236.42,2.1134]
[1733658048778,1.3869,236.49,236.37,1.98]
[1733658048979,1.3869,236.49,236.38,2.74994372]
[1733658049180,1.3869,236.49,236.37,1.98]
[1733658049181,2.1129,236.48,236.43,2.1133]
[1733658049783,3.4997,236.49,236.4,2.1135]
[1733658049980,3.4997,236.49,236.37,1.98]
[1733658050276,3.4997,236.49,236.38,1.05764477]
[1733658050579,3.4997,236.49,236.39,1.05764477]
[1733658050780,2.1129,236.48,236.37,1.98]
[1733658051080,2.1129,236.48,236.38,1.05764426]
[1733658051281,2.1129,236.48,236.43,2.1133]
[1733658051480,3.4069,236.55,236.37,1.98]
[1733658051779,1.2946,236.55,236.38,4.72972191]
[1733658052081,2.1124,236.54,236.49,2.1128]
[1733658052287,1.2946,236.55,236.44,1.98]
[1733658052580,3.4069,236.55,236.49,2.1127]
[1733658053275,2.1124,236.54,236.49,2.1127]
[1733658053473,1.2946,236.55,236.49,2.1127]
[1733658054580,2.1124,236.53,236.49,2.1127]
[1733658054785,1.2946,236.55,236.49,2.1127]
[1733658055278,2.1124,236.54,236.49,2.1127]
[1733658055577,1.2946,236.55,236.48,2.1129]
[1733658055783,2.1126,236.52,236.44,1.98]
[1733658056183,2.1126,236.52,236.47,2.1129]
[1733658057981,1.2946,236.55,236.39,1.2762]
[1733658058178,1.2946,236.55,236.4,1.98]
[1733658058580,2.1128,236.5,236.44,2.1132]
[1733658058987,1.2946,236.55,236.44,2.1132]
[1733658059493,1.2946,236.55,236.45,2.1131]
[1733658059988,2.1127,236.5,236.45,2.1131]
[1733658060290,2.1127,236.5,236.4,1.98]
[1733658060684,2.1127,236.5,236.45,2.1131]
[1733658061196,2.1127,236.5,236.4,1.98]
[1733658061381,1.2946,236.55,236.4,1.98]
[1733658062189,2.1126,236.51,236.46,2.113]
[1733658062889,1.2946,236.55,236.43,1.98]
[1733658064089,1.2946,236.55,236.46,2.113]
[1733658064390,1.2946,236.55,236.43,1.98]
[1733658065594,3.4069,236.55,236.5,2.1127]
[1733658068193,2.1124,236.53,236.43,1.98]
[1733658069590,2.1126,236.52,236.47,2.1129]
[1733658069993,1.2946,236.55,236.43,1.98]
[1733658070295,2.1124,236.54,236.43,1.98]
[1733658071300,2.1124,236.54,236.49,2.1127]
[1733658074298,1.2946,236.55,236.44,1.98]
[1733658074799,2.113,236.47,236.44,4.0932]
[1733658075099,1.98,236.46,236.33,1.98]
[1733658075302,3.2913,236.46,236.34,4.8651204]
[1733658075503,2.1133,236.44,236.35,1.05763487]
[1733658075695,3.2913,236.46,236.36,1.05763487]
[1733658076002,2.1136,236.4,236.29,3.2926]
[1733658076189,1.98,236.41,236.3,2.75039851]
[1733658076389,1.98,236.41,236.29,3.2926]
[1733658076390,1.98,236.41,236.31,2.75039851]
[1733658076591,1.98,236.41,236.35,2.114]
[1733658076793,1.98,236.41,236.29,3.2926]
[1733658076993,1.98,236.41,236.3,2.75036416]
[1733658077189,1.98,236.41,236.31,2.75036416]
[1733658077395,4.0936,236.41,236.32,1.05783237]
[1733658077691,4.0936,236.41,236.33,1.05783237]
[1733658077890,4.0936,236.41,236.36,2.1139]
[1733658079002,1.98,236.41,236.29,1.98]
[1733658079202,1.98,236.41,236.3,2.75040855]
[1733658079495,1.98,236.41,236.28,82.80887061]
[1733658079496,1.98,236.41,236.31,1.05784944]
[1733658079803,1.98,236.41,236.32,1.05784944]
[1733658080096,2.1138,236.38,236.28,80.74887061]
[1733658080301,1.98,236.41,236.28,80.74887061]
[1733658080302,1.98,236.41,236.29,1.05796105]
[1733658080602,2.114,236.36,236.3,2.1144]
[1733658080797,4.174,236.36,236.3,2.1144]
[1733658081093,2.1141,236.35,236.3,2.1144]
[1733658082698,2.1141,236.35,236.31,2.1144]
[1733658082898,2.06,236.36,236.31,2.1144]
[1733658083299,2.06,236.36,236.3,2.1145]
[1733658083600,2.06,236.36,236.23,2.06]
[1733658083798,4.0648,236.35,236.28,2.1147]
[1733658083997,2.1145,236.3,236.29,1.0579718]
[1733658084201,4.0648,236.35,236.21,2.06]
[1733658084497,4.0648,236.35,236.22,2.75112672]
[1733658084703,2.1146,236.29,236.23,1.05812566]
[1733658084904,2.1146,236.29,236.24,1.05812566]
[1733658085198,2.06,236.3,236.25,2.1149]
[1733658086708,4.1745,236.3,236.25,2.1149]
[1733658086901,2.06,236.3,236.19,2.06]
[1733658087201,4.0648,236.35,236.2,4.86773468]
[1733658087202,6.1248,236.35,236.2,4.86773468]
[1733658087403,2.1141,236.34,236.21,2.75133313]
[1733658087604,6.1248,236.35,236.22,2.75133313]
[1733658087801,6.1248,236.35,236.23,1.05820505]
[1733658087999,6.1248,236.35,236.19,2.06]
[1733658088296,2.1143,236.32,236.19,2.06]
[1733658088803,6.1248,236.35,236.19,2.06]
[1733658089005,6.1248,236.35,236.2,1.05822685]
[1733658089206,6.1248,236.35,236.21,1.05822685]
[1733658089412,2.1145,236.3,236.25,2.1149]
[1733658089604,4.1745,236.3,236.25,2.1149]
[1733658089903,2.06,236.3,236.19,2.06]
[1733658090095,2.06,236.3,236.2,4.86813814]
[1733658090299,2.06,236.3,236.21,2.75155634]
[1733658090500,2.06,236.3,236.22,2.75155634]
[1733658090700,2.06,236.3,236.19,2.06]
[1733658090701,2.06,236.3,236.23,1.0582909]
[1733658090900,2.06,236.3,236.19,2.06]
[1733658091098,2.06,236.3,236.2,2.75163184]
[1733658091305,2.06,236.3,236.21,2.75163184]
[1733658091497,2.06,236.3,236.22,1.05831994]
[1733658091702,2.06,236.3,236.18,2.06]
[1733658091907,2.06,236.3,236.19,2.7519153]
[1733658092105,2.06,236.3,236.2,1.05842896]
[1733658092406,2.06,236.3,236.21,3.17372896]
[1733658092602,2.06,236.3,236.21,2.1153]
[1733658093402,2.1148,236.26,236.21,2.1153]
[1733658093603,2.1148,236.26,236.15,2.06]
[1733658093809,2.1148,236.26,236.22,2.1152]
[1733658095307,2.06,236.3,236.15,2.06]
[1733658095608,2.06,236.3,236.25,2.1149]
[1733658096608,2.1146,236.29,236.25,2.1149]
[1733658096808,2.06,236.3,236.15,2.06]
[1733658097009,2.06,236.3,236.16,2.75169549]
[1733658097205,2.06,236.3,236.17,2.75169549]
[1733658097509,2.06,236.3,236.18,1.05834442]
[1733658097804,2.06,236.3,236.19,1.05834442]
[1733658098011,2.1149,236.26,236.15,2.06]
[1733658098205,2.06,236.3,236.16,2.75189001]
[1733658098405,2.1148,236.27,236.17,2.75189001]
[1733658098611,2.06,236.3,236.18,1.05841923]
[1733658098802,2.06,236.3,236.19,1.05841923]
[1733658099010,2.06,236.3,236.15,2.06]
[1733658099206,2.115,236.25,236.2,2.1153]
[1733658099407,2.06,236.3,236.2,2.1153]
[1733658100501,2.06,236.3,236.21,2.1153]
[1733658100705,2.115,236.25,236.21,2.1153]
[1733658100904,2.06,236.3,236.14,2.06]
[1733658101214,2.06,236.3,236.2,2.1153]
[1733658101410,2.115,236.24,236.2,2.1153]
[1733658102013,2.06,236.25,236.13,2.06]
[1733658102308,1.3279,236.24,236.14,2.75206451]
[1733658102517,2.1153,236.21,236.15,2.75206451]
[1733658102711,2.1153,236.21,236.16,1.05848635]
[1733658102913,2.1152,236.22,236.17,1.05848635]
[1733658103109,1.3279,236.24,236.15,2.1157]
[1733658103110,3.9667,236.24,236.15,2.1157]
[1733658103611,3.9667,236.24,236.14,2.1159]
[1733658104515,2.1153,236.22,236.15,3.17448824]
[1733658104711,3.9667,236.24,236.15,2.1158]
[1733658105220,3.9667,236.24,236.09,2.06]
[1733658105417,3.9667,236.24,236.1,4.86999033]
[1733658105720,2.1155,236.2,236.16,2.1157]
[1733658105913,4.1755,236.2,236.16,2.1157]
[1733658110622,2.06,236.2,236.17,2.1156]
[1733658111321,2.06,236.2,236.1,0.10359502]
[1733658111517,2.02,236.22,236.19,2.1154]
[1733658112022,2.02,236.22,236.2,1.05859841]
[1733658112218,2.02,236.22,236.19,2.1154]
[1733658112425,2.02,236.22,236.2,1.05859607]
[1733658112724,2.02,236.22,236.19,2.1154]
[1733658112919,2.02,236.22,236.2,1.05859974]
[1733658113225,2.02,236.22,236.21,1.05859974]
[1733658114216,3.9667,236.24,236.21,1.05859974]
[1733658114418,3.9667,236.24,236.22,1.05859974]
[1733658114419,1.3279,236.24,236.22,1.05859974]
[1733658114619,1.3279,236.24,236.23,1.05859974]
[1733658115619,1.3279,236.24,236.14,2.02]
[1733658115926,2.02,236.27,236.17,0.10393343]
[1733658116123,2.02,236.28,236.24,2.1149]
[1733658116322,2.02,236.28,236.25,1.05848849]
[1733658116526,2.02,236.28,236.26,3.17318849]
[1733658116721,1.3475,236.38,236.27,1.05840079]
[1733658116922,2.02,236.37,236.19,2.12393343]
[1733658117222,57.46683148,236.44,236.2,4.86858334]
[1733658117424,1.3475,236.36,236.23,0.10393343]
[1733658117629,2.02,236.35,236.24,4.86858334]
[1733658117827,2.02,236.35,236.28,2.1146]
[1733658117828,2.1143,236.33,236.28,2.1146]
[1733658118028,2.1143,236.33,236.29,1.05838768]
[1733658118231,2.1143,236.33,236.3,1.05838768]
[1733658118428,2.1143,236.33,236.31,1.05838768]
[1733658118620,2.1143,236.33,236.32,1.05838768]
[1733658119021,1.3475,236.36,236.32,1.05838768]
[1733658119224,1.3475,236.36,236.25,2.12393343]
[1733658119421,1.3475,236.36,236.27,0.10393343]
[1733658119620,1.3475,236.36,236.28,4.86743158]
[1733658119826,1.3475,236.36,236.29,4.86743158]
[1733658120020,1.3475,236.36,236.3,4.86743158]
[1733658120227,1.3475,236.36,236.33,2.1142]
[1733658120434,2.02,236.39,236.34,2.75117271]
[1733658120634,2.02,236.39,236.35,1.05816561]
[1733658120836,2.02,236.39,236.36,1.05816561]
[1733658121025,2.02,236.39,236.37,1.05816561]
[1733658121227,2.1138,236.38,236.29,0.10393343]
[1733658121431,2.1138,236.38,236.3,4.86669675]
[1733658121631,2.1138,236.38,236.31,4.86669675]
[1733658121832,2.1138,236.38,236.32,4.86669675]
[1733658122133,2.02,236.39,236.34,2.1141]
[1733658122335,4.1337,236.39,236.35,2.75074164]
[1733658122538,4.1337,236.39,236.36,1.05797431]
[1733658122833,4.1337,236.39,236.37,1.05797431]
[1733658123036,4.1337,236.39,236.34,2.1141]
[1733658123240,4.1337,236.39,236.35,1.05796303]
[1733658123438,4.1337,236.39,236.36,1.05796303]
[1733658123744,4.1337,236.39,236.37,1.05796303]
[1733658123938,4.1337,236.39,236.34,2.1141]
[1733658124238,4.1337,236.39,236.35,1.05796346]
[1733658124439,4.1337,236.39,236.36,1.05796346]
[1733658124642,4.1337,236.39,236.34,2.1141]
[1733658124830,4.1337,236.39,236.35,1.05796419]
[1733658125029,4.1337,236.39,236.36,1.05796419]
[1733658125235,4.1337,236.39,236.34,2.1141]
[1733658125438,4.1337,236.39,236.35,1.05796346]
[1733658125738,2.1138,236.38,236.36,1.05796346]
[1733658125941,2.1138,236.38,236.34,2.1141]
[1733658126131,2.1138,236.38,236.35,1.05796346]
[1733658126331,2.1138,236.38,236.34,2.1141]
[1733658126542,2.1138,236.38,236.35,1.05796346]
[1733658126737,2.1138,236.38,236.34,2.1141]
[1733658126939,2.1138,236.38,236.35,1.05796932]
[1733658127240,2.1138,236.38,236.34,2.1141]
[1733658127440,4.1337,236.39,236.34,2.1141]
[1733658127741,2.02,236.39,236.34,2.1141]
[1733658128743,2.1138,236.38,236.34,2.1141]
[1733658129138,2.1139,236.37,236.32,2.1142]
[1733658129341,2.02,236.39,236.25,2.02]
[1733658129937,2.02,236.39,236.26,4.86682116]
[1733658130141,2.02,236.39,236.27,2.75081196]
[1733658130441,2.02,236.39,236.28,2.75081196]
[1733658130631,2.1138,236.38,236.33,2.1141]
[1733658130836,2.02,236.39,236.33,2.1141]
[1733658131740,2.1139,236.37,236.33,2.1141]
[1733658132137,2.1133,236.44,236.39,2.1137]
[1733658132337,2.02,236.51,236.39,2.1137]
[1733658132636,2.02,236.5,236.33,2.02]
[1733658132836,2.02,236.5,236.26,0.10395778]
[1733658133033,2.02,236.5,236.27,4.86638108]
[1733658133234,2.1139,236.37,236.28,4.77061866]
[1733658133536,1.2772,236.54,236.29,3.07793025]
[1733658133537,2.02,236.42,236.29,3.07793025]
[1733658133741,4.0313,236.41,236.3,1.05793025]
[1733658133944,4.0313,236.41,236.32,2.1143]
[1733658134241,4.0313,236.41,236.29,2.02]
[1733658134743,2.1139,236.37,236.29,2.02]
[1733658135648,2.1139,236.37,236.32,2.1143]
[1733658136335,2.1139,236.37,236.29,2.02]
[1733658136941,2.1139,236.37,236.32,2.1142]
[1733658137146,2.1139,236.37,236.29,2.02]
[1733658138146,2.1138,236.39,236.29,2.02]
[1733658138346,4.0313,236.41,236.29,2.02]
[1733658140651,2.1139,236.37,236.33,2.1142]
[1733658142550,4.0313,236.41,236.29,2.02]
[1733658142741,4.0313,236.41,236.35,2.114]
[1733658143743,2.1138,236.38,236.35,2.114]
[1733658148248,4.0313,236.41,236.33,2.1141]
[1733658148453,4.0313,236.41,236.29,2.02]
[1733658149049,2.1139,236.37,236.33,2.1141]
[1733658149445,2.1139,236.37,236.34,2.1141]
[1733658152554,2.1139,236.37,236.29,2.02]
[1733658152555,4.0313,236.41,236.29,2.02]
[1733658152855,2.1138,236.38,236.3,2.75065984]
[1733658153056,2.1138,236.38,236.31,1.05794609]
[1733658153358,4.0313,236.41,236.34,2.1141]
[1733658153359,2.1139,236.37,236.34,2.1141]
[1733658159663,2.1139,236.36,236.31,2.1144]
[1733658159865,2.1139,236.36,236.32,1.05799412]
[1733658160064,2.1139,236.36,236.33,1.05799412]
[1733658160262,2.1139,236.36,236.32,2.1142]
[1733658160463,2.1139,236.36,236.33,1.05800056]
[1733658160760,2.06,236.37,236.24,2.16427691]
[1733658160965,2.06,236.37,236.29,2.1145]
[1733658161258,2.06,236.37,236.3,2.75101941]
[1733658161458,2.06,236.37,236.31,1.05808253]
[1733658161665,2.1142,236.33,236.29,2.1145]
[1733658161866,2.06,236.37,236.3,1.05810607]
[1733658162067,2.06,236.37,236.31,1.05810607]
[1733658162268,2.06,236.37,236.22,2.16427691]
[1733658162456,2.06,236.37,236.24,3.80954162]
[1733658162657,2.1146,236.29,236.25,5.92444162]
[1733658162862,2.1146,236.29,236.26,1.69312961]
[1733658163062,2.1146,236.29,236.25,2.1149]
[1733658163668,1.4024,236.3,236.18,0.10427691]
[1733658163868,1.321,236.29,236.19,4.86855886]
[1733658164066,1.321,236.29,236.2,4.86855886]
[1733658164365,1.321,236.29,236.21,3.8086868]
[1733658164366,2.115,236.25,236.21,3.8086868]
[1733658164566,2.06,236.26,236.22,1.6934868]
[1733658164872,2.115,236.24,236.19,2.1155]
[1733658165064,2.115,236.24,236.2,1.69358186]
[1733658165269,2.115,236.24,236.21,1.69358186]
[1733658165467,2.115,236.24,236.19,2.1155]
[1733658166068,2.115,236.24,236.2,1.6935983]
[1733658166268,2.115,236.24,236.19,2.1155]
[1733658166469,2.115,236.24,236.2,1.6935913]
[1733658166671,2.115,236.24,236.19,2.1155]
[1733658166873,2.115,236.24,236.2,1.69359315]
[1733658167076,2.115,236.24,236.19,2.1155]
[1733658167280,2.06,236.26,236.14,0.10459178]
[1733658167471,2.06,236.26,236.15,1.69370119]
[1733658167669,2.06,236.26,236.11,2.10459178]
[1733658167670,2.06,236.26,236.11,2.0]
[1733658167873,2.06,236.26,236.12,3.81124176]
[1733658168074,2.06,236.26,236.11,2.0]
[1733658168075,2.06,236.26,236.13,3.81124176]
[1733658168373,2.1153,236.22,236.14,1.69388523]
[1733658168675,2.06,236.26,236.11,2.0]
[1733658168875,2.06,236.26,236.12,3.8113499]
[1733658169080,2.06,236.26,236.13,1.69393329]
[1733658169277,2.06,236.26,236.11,2.0]
[1733658169471,2.06,236.26,236.12,1.69394317]
[1733658169671,2.1153,236.21,236.13,1.69394317]
[1733658169976,2.0,236.21,236.14,1.693942]
[1733658170176,2.1155,236.2,236.1,2.0]
[1733658170381,2.0,236.21,236.11,3.81135732]
[1733658170583,2.0,236.21,236.12,3.81135732]
[1733658170880,2.1151,236.24,236.13,3.81135732]
[1733658171179,2.1151,236.24,236.14,3.81135732]
[1733658171375,2.1151,236.23,236.14,3.81135732]
[1733658171873,2.1151,236.23,236.15,1.69364336]
[1733658172079,2.1151,236.23,236.16,1.69364336]
[1733658172278,2.1151,236.23,236.11,0.10421524]
[1733658172481,2.1151,236.23,236.12,3.81083427]
[1733658172678,2.1151,236.23,236.13,3.81083427]
[1733658172978,2.1151,236.23,236.14,3.81083427]
[1733658173174,2.1151,236.23,236.15,1.69370412]
[1733658173374,2.1151,236.23,236.16,1.69370412]
[1733658173571,2.1151,236.23,236.12,1.05856507]
[1733658173777,2.1151,236.23,236.13,3.81084017]
[1733658173978,2.1151,236.23,236.14,3.81084017]
[1733658174178,2.1151,236.23,236.15,2.75226407]
[1733658174385,2.1151,236.23,236.16,2.75226407]
[1733658174682,2.1151,236.23,236.17,1.05855733]
[1733658174881,2.1151,236.23,236.18,1.05855733]
[1733658175078,2.1151,236.23,236.1,2.10421524]
[1733658175281,2.115,236.24,236.11,5.92792105]
[1733658175577,2.0,236.25,236.12,4.86936372]
[1733658175785,3.321,236.29,236.13,6.03203295]
[1733658175985,3.321,236.29,236.14,5.92781771]
[1733658176180,3.321,236.29,236.15,6.86936372]
[1733658176382,3.321,236.29,236.16,6.21376372]
[1733658176682,3.321,236.29,236.17,2.75224906]
[1733658176883,3.321,236.29,236.18,2.75224906]
[1733658177080,3.321,236.29,236.19,1.05855733]
[1733658177380,3.5169,236.3,236.2,3.05855733]
[1733658177381,1.4024,236.3,236.2,3.05855733]
[1733658177580,1.4024,236.3,236.21,1.05840413]
[1733658177775,1.4024,236.3,236.2,2.0]
[1733658177984,1.4024,236.3,236.21,1.05840398]
[1733658178184,1.4024,236.3,236.22,1.05840398]
[1733658178386,1.4024,236.3,236.2,2.0]
[1733658178582,1.4024,236.3,236.28,2.1146]
[1733658179385,1.4024,236.3,236.24,2.115]
[1733658180588,1.4024,236.3,236.2,2.0]
[1733658180784,2.1146,236.29,236.25,2.1149]
[1733658180983,1.4024,236.3,236.2,2.0]
[1733658181287,2.0,236.31,236.21,1.05839892]
[1733658181481,2.0,236.31,236.22,1.05839892]
[1733658181686,2.0,236.31,236.2,2.0]
[1733658181988,2.0,236.31,236.21,1.05839358]
[1733658182190,2.0,236.31,236.24,2.115]
[1733658182392,2.0,236.31,236.2,2.0]
[1733658182585,1.3333,236.36,236.21,1.05839149]
[1733658182784,5.4473,236.36,236.32,2.1143]
[1733658184294,1.3333,236.36,236.33,2.1142]
[1733658184592,2.0,236.41,236.26,2.0]